[Event "CZE-ch U14 Girls 2020"]
[Site "Kouty nad Desnou"]
[Date "2020.03.08"]
[Round "2.14"]
[White "Trasakova, Adela"]
[Black "Spacilova, Klara"]
[Result "1-0"]
[ECO "D02"]
[WhiteElo "1639"]
[BlackElo "1188"]
[Annotator "NA"]
[PlyCount "115"]
[EventDate "2020.03.07"]
[EventCountry "CZE"]
[SourceTitle "playchess.com"]
[Source "ChessBase"]
[SourceQuality "1"]
[TimeControl "5400+30"]

1. d4 {[%emt 0:00:00]} d5 {[%emt 0:00:00]} 2. Bf4 {[%emt 0:00:00]} Nf6 {[%emt 0:00:00]} 3. e3 {[%emt 0:00:20]} e6 {[%emt 0:00:11]} 4. c3 {[%emt 0:00:52]} Bd6 {[%emt 0:00:13]} 5. Nf3 {[%emt 0:02:32]} O-O {[%emt 0:00:18]} 6. Bd3 {[%emt 0:04:04]} b6 {[%emt 0:00:19]} 7. Bg3 {[%emt 0:02:02]} Bb7 {[%emt 0:00:36]} 8. Ne5 {[%emt 0:02:13]} c5 {[%emt 0:03:31]} 9. Nd2 {[%emt 0:02:34]} Re8 {[%emt 0:01:16]} 10. O-O {[%emt 0:03:50]} Qc7 {[%emt 0:04:52]} 11. f4 {[%emt 0:04:19]} Ba6 {[%emt 0:03:08]} 12. Bxa6 {[%emt 0:05:20]} Nxa6 {[%emt 0:00:21]} 13. Qf3 {[%emt 0:01:02]} Nb8 {[%emt 0:01:15]} 14. Bh4 {[%emt 0:08:25]} Nbd7 {[%emt 0:03:16]} 15. g4 {[%emt 0:02:52]} g6 {[%emt 0:04:12]} 16. g5 {[%emt 0:06:31]} Nh5 {[%emt 0:00:40]} 17. Ng4 {[%emt 0:02:01]} Be7 {[%emt 0:01:18]} 18. f5 {[%emt 0:06:09]} exf5 {[%emt 0:01:26]} 19. Nh6+ {[%emt 0:03:03]} Kg7 {[%emt 0:03:22]} 20. Qxd5 {[%emt 0:07:04]} Bd6 {[%emt 0:04:55]} 21. Qxf7+ {[%emt 0:07:27]} Kh8 {[%emt 0:00:14]} 22. Qd5 {[%emt 0:02:27]} Bxh2+ {[%emt 0:00:33]} 23. Kh1 {[%emt 0:01:50]} Ng3+ {[%emt 0:02:51]} 24. Bxg3 {[%emt 0:00:39]} Qxg3 {[%emt 0:00:18]} 25. Nf3 {[%emt 0:02:45]} Qc7 {[%emt 0:11:38]} 26. Nxh2 {[%emt 0:01:45]} Rab8 {[%emt 0:00:50]} 27. Rae1 {[%emt 0:02:17]} Re7 {[%emt 0:01:28]} 28. Qg2 {[%emt 0:04:06]} Rbe8 {[%emt 0:03:25]} 29. Qf2 {[%emt 0:00:34]} Qb7+ {[%emt 0:03:54]} 30. Qf3 {[%emt 0:02:36]} Qxf3+ {[%emt 0:01:20]} 31. Nxf3 {[%emt 0:01:15]} Rxe3 {[%emt 0:01:55]} 32. Nf7+ {[%emt 0:03:18]} Kg7 {[%emt 0:00:31]} 33. N7e5 {[%emt 0:00:22]} Rxe1 {[%emt 0:00:38]} 34. Rxe1 {[%emt 0:00:14]} Rd8 {[%emt 0:03:56]} 35. Nc6 {[%emt 0:03:05]} Rf8 {[%emt 0:01:41]} 36. Re7+ {[%emt 0:01:02]} Rf7 {[%emt 0:02:11]} 37. Rxf7+ {[%emt 0:00:57]} Kxf7 {[%emt 0:00:40]} 38. d5 {[%emt 0:00:46]} Ke8 {[%emt 0:00:31]} 39. Nfe5 {[%emt 0:01:35]} Nxe5 {[%emt 0:00:20]} 40. Nxe5 {[%emt 0:00:00]} Ke7 {[%emt 0:00:00]} 41. c4 {[%emt 0:00:00]} b5 {[%emt 0:00:00]} 42. b3 {[%emt 0:00:00]} Kd6 {[%emt 0:00:00]} 43. Nc6 {[%emt 0:00:00]} a6 {[%emt 0:00:00]} 44. a4 {[%emt 0:00:00]} Kc7 {[%emt 0:00:00]} 45. a5 {[%emt 0:00:00]} b4 {[%emt 0:00:00]} 46. Kg2 {[%emt 0:00:00]} Kb7 {[%emt 0:00:00]} 47. Kf3 {[%emt 0:00:00]} Kc7 {[%emt 0:00:00]} 48. Kf4 {[%emt 0:00:00]} Kc8 {[%emt 0:00:00]} 49. Ne7+ {[%emt 0:00:00]} Kd7 {[%emt 0:00:00]} 50. Nxf5 {[%emt 0:00:00]} gxf5 {[%emt 0:00:00]} 51. Kxf5 {[%emt 0:00:00]} Ke7 {[%emt 0:00:00]} 52. Ke5 {[%emt 0:00:00]} Kd7 {[%emt 0:00:00]} 53. Kf6 {[%emt 0:00:00]} Kd6 {[%emt 0:00:00]} 54. Kg7 {[%emt 0:00:00]} h5 {[%emt 0:00:00]} 55. gxh6 {[%emt 0:00:00]} Ke5 {[%emt 0:00:00]} 56. h7 {[%emt 0:00:00]} Kd6 {[%emt 0:00:00]} 57. Kf6 {[%emt 0:00:00]} Kd7 {[%emt 0:00:00]} 58. h8=Q {[%emt 0:00:00]} 1-0

[Event "CZE-ch U14 Girls 2020"]
[Site "Kouty nad Desnou"]
[Date "2020.03.08"]
[Round "2.15"]
[White "Jirotova, Eliska"]
[Black "Pejrimovska, Viola Ruby"]
[Result "0-1"]
[ECO "B42"]
[WhiteElo "1333"]
[BlackElo "1600"]
[Annotator "NA"]
[PlyCount "104"]
[EventDate "2020.03.07"]
[EventCountry "CZE"]
[SourceTitle "playchess.com"]
[Source "ChessBase"]
[SourceQuality "1"]
[TimeControl "5400+30"]

1. e4 {[%emt 0:00:00]} c5 {[%emt 0:00:00]} 2. Nf3 {[%emt 0:00:00]} e6 {[%emt 0:00:00]} 3. d4 {[%emt 0:00:00]} cxd4 {[%emt 0:00:00]} 4. Nxd4 {[%emt 0:00:00]} a6 {[%emt 0:00:03]} 5. Bd3 {[%emt 0:00:06]} d6 {[%emt 0:00:20]} 6. Qe2 {[%emt 0:00:22]} Nf6 {[%emt 0:00:26]} 7. c4 {[%emt 0:00:17]} Be7 {[%emt 0:00:59]} 8. Nc3 {[%emt 0:00:22]} O-O {[%emt 0:00:29]} 9. O-O {[%emt 0:00:32]} b6 {[%emt 0:01:10]} 10. Be3 {[%emt 0:00:29]} Bb7 {[%emt 0:01:05]} 11. f4 {[%emt 0:00:37]} Nbd7 {[%emt 0:02:21]} 12. b4 {[%emt 0:01:09]} Qc7 {[%emt 0:03:29]} 13. Rac1 {[%emt 0:01:16]} Rac8 {[%emt 0:08:41]} 14. Kh1 {[%emt 0:06:47]} Qb8 {[%emt 0:02:07]} 15. Bg1 {[%emt 0:05:26]} Qa8 {[%emt 0:06:38]} 16. Bb1 {[%emt 0:05:17]} Rfe8 {[%emt 0:13:05]} 17. a3 {[%emt 0:08:23]} d5 {[%emt 0:06:42]} 18. e5 {[%emt 0:12:41]} Ne4 {[%emt 0:02:00]} 19. Nxe4 {[%emt 0:02:39]} dxe4 {[%emt 0:00:23]} 20. Rc3 {[%emt 0:03:07]} f6 {[%emt 0:17:30]} 21. exf6 {[%emt 0:31:42]} Nxf6 {[%emt 0:08:14]} 22. Nxe6 {[%emt 0:03:56]} Bxb4 {[%emt 0:06:01]} 23. axb4 {[%emt 0:00:23]} Rxe6 {[%emt 0:01:08]} 24. Ba2 {[%emt 0:01:42]} Kh8 {[%emt 0:01:28]} 25. Rg3 {[%emt 0:03:56]} Rd8 {[%emt 0:05:58]} 26. c5 {[%emt 0:03:09]} Re7 {[%emt 0:01:27]} 27. Qb2 {[%emt 0:01:04]} Red7 {[%emt 0:02:53]} 28. Be3 {[%emt 0:03:27]} bxc5 {[%emt 0:04:27]} 29. bxc5 {[%emt 0:00:30]} Bc6 {[%emt 0:00:10]} 30. Bc1 {[%emt 0:01:03]} Rd1 {[%emt 0:01:36]} 31. Qe2 {[%emt 0:03:27]} Bb5 {[%emt 0:02:52]} 32. Bc4 {[%emt 0:00:11]} Bxc4 {[%emt 0:00:38]} 33. Qxc4 {[%emt 0:00:06]} Qd5 {[%emt 0:01:00]} 34. Qe2 {[%emt 0:01:02]} Rxf1+ {[%emt 0:00:52]} 35. Qxf1 {[%emt 0:00:06]} Qd1 {[%emt 0:00:09]} 36. Kg1 {[%emt 0:00:17]} Qxf1+ {[%emt 0:00:15]} 37. Kxf1 {[%emt 0:00:08]} Rd1+ {[%emt 0:00:23]} 38. Ke2 {[%emt 0:00:21]} Rxc1 {[%emt 0:00:16]} 39. Ra3 {[%emt 0:00:11]} Rxc5 {[%emt 0:00:26]} 40. Rxa6 {[%emt 0:00:00]} h6 {[%emt 0:00:51]} 41. h4 {[%emt 0:00:00]} Rc2+ {[%emt 0:00:00]} 42. Kf1 {[%emt 0:00:00]} Ng4 {[%emt 0:00:00]} 43. g3 {[%emt 0:00:00]} Rf2+ {[%emt 0:00:00]} 44. Ke1 {[%emt 0:00:00]} Rf3 {[%emt 0:00:00]} 45. Re6 {[%emt 0:00:00]} e3 {[%emt 0:00:00]} 46. Re7 {[%emt 0:00:00]} Rxg3 {[%emt 0:00:00]} 47. Ke2 {[%emt 0:00:00]} Rh3 {[%emt 0:00:00]} 48. Ke1 {[%emt 0:00:00]} Rxh4 {[%emt 0:00:00]} 49. Re4 {[%emt 0:00:00]} Nf6 {[%emt 0:00:00]} 50. Rxe3 {[%emt 0:00:00]} Rxf4 {[%emt 0:00:00]} 51. Rh3 {[%emt 0:00:00]} Kh7 {[%emt 0:00:00]} 52. Ke2 {[%emt 0:00:00]} g5 {[%emt 0:00:00]} 0-1

[Event "CZE-ch U14 Girls 2020"]
[Site "Kouty nad Desnou"]
[Date "2020.03.08"]
[Round "2.16"]
[White "Fizerova, Lucie"]
[Black "Stribna, Julie"]
[Result "1-0"]
[ECO "C42"]
[WhiteElo "1574"]
[BlackElo "1046"]
[Annotator "NA"]
[PlyCount "39"]
[EventDate "2020.03.07"]
[EventCountry "CZE"]
[SourceTitle "playchess.com"]
[Source "ChessBase"]
[SourceQuality "1"]
[TimeControl "5400+30"]

1. e4 {[%emt 0:00:00]} e5 {[%emt 0:00:00]} 2. Nf3 {[%emt 0:00:00]} Nf6 {[%emt 0:00:06]} 3. Nxe5 {[%emt 0:00:00]} d6 {[%emt 0:00:10]} 4. Nf3 {[%emt 0:00:00]} Nxe4 {[%emt 0:00:14]} 5. Nc3 {[%emt 0:00:38]} Nxc3 {[%emt 0:00:19]} 6. dxc3 {[%emt 0:00:30]} Be7 {[%emt 0:02:28]} 7. Be3 {[%emt 0:00:30]} O-O {[%emt 0:00:30]} 8. Qd2 {[%emt 0:00:30]} Bf5 {[%emt 0:00:30]} 9. h4 {[%emt 0:03:37]} h5 {[%emt 0:29:50]} 10. O-O-O {[%emt 0:02:45]} f6 {[%emt 0:18:02]} 11. Qd5+ {[%emt 0:01:55]} Be6 {[%emt 0:06:47]} 12. Qxe6+ {[%emt 0:00:11]} Kh8 {[%emt 0:00:17]} 13. Qf5 {[%emt 0:00:55]} Qe8 {[%emt 0:02:34]} 14. Bd3 {[%emt 0:00:18]} g6 {[%emt 0:01:11]} 15. Qxg6 {[%emt 0:00:10]} Qxg6 {[%emt 0:00:14]} 16. Bxg6 {[%emt 0:00:02]} Nc6 {[%emt 0:10:53]} 17. Bxh5 {[%emt 0:01:42]} Rg8 {[%emt 0:01:09]} 18. Rd5 {[%emt 0:01:00]} Ne5 {[%emt 0:07:53]} 19. Nxe5 {[%emt 0:00:35]} fxe5 {[%emt 0:00:26]} 20. g4 {[%emt 0:00:33]} 1-0

[Event "CZE-ch U14 Girls 2020"]
[Site "Kouty nad Desnou"]
[Date "2020.03.08"]
[Round "2.17"]
[White "Glasbergerova, Lucie"]
[Black "Markova, Karolina"]
[Result "0-1"]
[ECO "C01"]
[WhiteElo "1203"]
[BlackElo "1497"]
[Annotator "NA"]
[PlyCount "114"]
[EventDate "2020.03.07"]
[EventCountry "CZE"]
[SourceTitle "playchess.com"]
[Source "ChessBase"]
[SourceQuality "1"]
[TimeControl "5400+30"]

1. e4 {[%emt 0:00:00]} e5 {[%emt 0:00:00]} 2. Nf3 {[%emt 0:00:00]} Nf6 {[%emt 0:00:00]} 3. Nxe5 {[%emt 0:01:42]} d6 {[%emt 0:00:00]} 4. Nf3 {[%emt 0:00:19]} Nxe4 {[%emt 0:00:00]} 5. d3 {[%emt 0:00:17]} Nf6 {[%emt 0:00:13]} 6. Nc3 {[%emt 0:00:39]} d5 {[%emt 0:02:03]} 7. d4 {[%emt 0:00:53]} Bb4 {[%emt 0:00:49]} 8. Bd2 {[%emt 0:02:07]} O-O {[%emt 0:02:20]} 9. Be2 {[%emt 0:01:43]} Bg4 {[%emt 0:00:59]} 10. O-O {[%emt 0:02:07]} Nc6 {[%emt 0:01:18]} 11. Be3 {[%emt 0:04:44]} Bxc3 {[%emt 0:03:50]} 12. bxc3 {[%emt 0:00:11]} Ne4 {[%emt 0:01:39]} 13. Qd3 {[%emt 0:05:33]} Re8 {[%emt 0:01:30]} 14. Rab1 {[%emt 0:01:01]} Na5 {[%emt 0:04:26]} 15. h3 {[%emt 0:08:19]} Bh5 {[%emt 0:00:55]} 16. Rfe1 {[%emt 0:01:05]} b6 {[%emt 0:02:57]} 17. Ne5 {[%emt 0:02:45]} Bxe2 {[%emt 0:03:56]} 18. Rxe2 {[%emt 0:00:18]} c5 {[%emt 0:13:07]} 19. c4 {[%emt 0:07:23]} Nxc4 {[%emt 0:03:57]} 20. Nxc4 {[%emt 0:00:37]} dxc4 {[%emt 0:00:11]} 21. Qxc4 {[%emt 0:00:19]} cxd4 {[%emt 0:00:46]} 22. Bxd4 {[%emt 0:00:55]} Rc8 {[%emt 0:04:47]} 23. Qd3 {[%emt 0:01:42]} Nc5 {[%emt 0:02:25]} 24. Rxe8+ {[%emt 0:01:26]} Qxe8 {[%emt 0:00:21]} 25. Bxc5 {[%emt 0:01:06]} Rxc5 {[%emt 0:00:18]} 26. Rd1 {[%emt 0:00:50]} g6 {[%emt 0:01:14]} 27. c3 {[%emt 0:05:19]} Qc8 {[%emt 0:01:25]} 28. Rc1 {[%emt 0:00:27]} Ra5 {[%emt 0:00:52]} 29. Qd2 {[%emt 0:00:49]} Qc4 {[%emt 0:02:16]} 30. Rc2 {[%emt 0:01:06]} Rd5 {[%emt 0:03:04]} 31. Qe1 {[%emt 0:02:42]} Qd3 {[%emt 0:04:49]} 32. Rc1 {[%emt 0:01:47]} Qd2 {[%emt 0:01:47]} 33. a3 {[%emt 0:05:53]} Rd3 {[%emt 0:04:41]} 34. Qxd2 {[%emt 0:04:17]} Rxd2 {[%emt 0:00:05]} 35. c4 {[%emt 0:00:45]} Rd3 {[%emt 0:00:07]} 36. c5 {[%emt 0:05:36]} bxc5 {[%emt 0:00:12]} 37. Rxc5 {[%emt 0:00:08]} Rxa3 {[%emt 0:00:04]} 38. Rc1 {[%emt 0:00:33]} Kg7 {[%emt 0:00:34]} 39. Kf1 {[%emt 0:00:08]} h5 {[%emt 0:00:25]} 40. Ke2 {[%emt 0:00:00]} h4 {[%emt 0:00:00]} 41. Rc5 {[%emt 0:00:00]} Ra6 {[%emt 0:00:00]} 42. Rc4 {[%emt 0:00:00]} g5 {[%emt 0:00:00]} 43. f4 {[%emt 0:00:00]} f6 {[%emt 0:00:00]} 44. f5 {[%emt 0:00:00]} Ra5 {[%emt 0:00:00]} 45. Rc7+ {[%emt 0:00:00]} Kh6 {[%emt 0:00:00]} 46. Rf7 {[%emt 0:00:00]} Re5+ {[%emt 0:00:00]} 47. Kd3 {[%emt 0:00:00]} Rxf5 {[%emt 0:00:00]} 48. Rxa7 {[%emt 0:00:00]} Rf2 {[%emt 0:00:00]} 49. Ra6 {[%emt 0:00:00]} Kg6 {[%emt 0:00:00]} 50. Ke4 {[%emt 0:00:00]} Rxg2 {[%emt 0:00:00]} 51. Ra3 {[%emt 0:00:00]} Rg3 {[%emt 0:00:00]} 52. Rxg3 {[%emt 0:00:00]} hxg3 {[%emt 0:00:00]} 53. Kf3 {[%emt 0:00:07]} Kh5 {[%emt 0:00:00]} 54. Kxg3 {[%emt 0:00:14]} f5 {[%emt 0:00:00]} 55. Kf3 {[%emt 0:00:42]} Kh4 {[%emt 0:00:00]} 56. Kg2 {[%emt 0:00:06]} g4 {[%emt 0:00:00]} 57. hxg4 {[%emt 0:00:20]} Kxg4 {[%emt 0:00:00]} 0-1

[Event "CZE-ch U14 Girls 2020"]
[Site "Kouty nad Desnou"]
[Date "2020.03.08"]
[Round "2.19"]
[White "Vavrinkova, Marie"]
[Black "Nagyova, Daniela"]
[Result "1-0"]
[ECO "C63"]
[WhiteElo "1240"]
[BlackElo "1560"]
[Annotator "NA"]
[PlyCount "67"]
[EventDate "2020.03.07"]
[EventCountry "CZE"]
[SourceTitle "playchess.com"]
[Source "ChessBase"]
[SourceQuality "1"]
[TimeControl "5400+30"]

1. e4 {[%emt 0:00:00]} e5 {[%emt 0:00:00]} 2. Nf3 {[%emt 0:00:00]} Nc6 {[%emt 0:00:00]} 3. Bb5 {[%emt 0:00:31]} f5 {[%emt 0:00:40]} 4. d3 {[%emt 0:00:25]} fxe4 {[%emt 0:00:38]} 5. dxe4 {[%emt 0:00:24]} Nf6 {[%emt 0:00:37]} 6. O-O {[%emt 0:02:16]} Bc5 {[%emt 0:01:21]} 7. Bg5 {[%emt 0:02:16]} d6 {[%emt 0:01:37]} 8. h3 {[%emt 0:04:25]} O-O {[%emt 0:02:47]} 9. Nc3 {[%emt 0:02:45]} Kh8 {[%emt 0:02:33]} 10. Na4 {[%emt 0:08:22]} Bb6 {[%emt 0:02:48]} 11. Bc4 {[%emt 0:02:38]} Qe8 {[%emt 0:03:41]} 12. Re1 {[%emt 0:07:35]} Qg6 {[%emt 0:03:16]} 13. Nxb6 {[%emt 0:02:07]} axb6 {[%emt 0:00:27]} 14. Qc1 {[%emt 0:03:22]} Qh5 {[%emt 0:03:46]} 15. Qe3 {[%emt 0:08:23]} Nd4 {[%emt 0:05:01]} 16. Nxd4 {[%emt 0:04:44]} exd4 {[%emt 0:00:18]} 17. Qd2 {[%emt 0:01:55]} Qg6 {[%emt 0:02:43]} 18. e5 {[%emt 0:01:39]} Ne4 {[%emt 0:02:50]} 19. Rxe4 {[%emt 0:03:17]} Qxe4 {[%emt 0:00:31]} 20. Be7 {[%emt 0:01:15]} Re8 {[%emt 0:03:08]} 21. exd6 {[%emt 0:00:44]} cxd6 {[%emt 0:00:36]} 22. Bxd6 {[%emt 0:00:23]} Qc6 {[%emt 0:07:18]} 23. Bf7 {[%emt 0:03:13]} Re4 {[%emt 0:02:35]} 24. f3 {[%emt 0:01:06]} Rh4 {[%emt 0:03:09]} 25. Qg5 {[%emt 0:03:15]} Qxd6 {[%emt 0:01:45]} 26. Qxh4 {[%emt 0:00:25]} Bf5 {[%emt 0:01:27]} 27. Rd1 {[%emt 0:02:05]} Rd8 {[%emt 0:01:21]} 28. Qf2 {[%emt 0:04:56]} Rd7 {[%emt 0:03:50]} 29. Be8 {[%emt 0:01:21]} Rd8 {[%emt 0:00:56]} 30. Bb5 {[%emt 0:00:49]} Be6 {[%emt 0:02:44]} 31. a3 {[%emt 0:02:15]} Qc5 {[%emt 0:01:31]} 32. Bf1 {[%emt 0:01:23]} Bf5 {[%emt 0:01:32]} 33. Bd3 {[%emt 0:00:51]} Bc8 {[%emt 0:01:09]} 34. Qh4 {[%emt 0:00:49]} 1-0

[Event "CZE-ch U14 Girls 2020"]
[Site "Kouty nad Desnou"]
[Date "2020.03.08"]
[Round "2.20"]
[White "Sulcova, Tereza Radmila"]
[Black "Ticha, Sofie"]
[Result "1-0"]
[ECO "D05"]
[WhiteElo "1555"]
[BlackElo "1216"]
[Annotator "NA"]
[PlyCount "73"]
[EventDate "2020.03.07"]
[EventCountry "CZE"]
[SourceTitle "playchess.com"]
[Source "ChessBase"]
[SourceQuality "1"]
[TimeControl "5400+30"]

1. d4 {[%emt 0:00:00]} d5 {[%emt 0:00:00]} 2. Nf3 {[%emt 0:00:00]} e6 {[%emt 0:01:15]} 3. e3 {[%emt 0:00:50]} c5 {[%emt 0:04:05]} 4. c3 {[%emt 0:00:39]} Nc6 {[%emt 0:01:17]} 5. Bd3 {[%emt 0:01:54]} Nf6 {[%emt 0:01:42]} 6. Nbd2 {[%emt 0:01:58]} Bd6 {[%emt 0:00:59]} 7. O-O {[%emt 0:01:16]} O-O {[%emt 0:02:50]} 8. dxc5 {[%emt 0:05:13]} Bxc5 {[%emt 0:01:31]} 9. e4 {[%emt 0:00:19]} Qc7 {[%emt 0:00:51]} 10. exd5 {[%emt 0:01:07]} exd5 {[%emt 0:00:31]} 11. c4 {[%emt 0:00:48]} h6 {[%emt 0:01:49]} 12. Qc2 {[%emt 0:07:41]} Nb4 {[%emt 0:02:08]} 13. Qc3 {[%emt 0:00:48]} Nxd3 {[%emt 0:02:14]} 14. Qxd3 {[%emt 0:00:56]} Be6 {[%emt 0:01:14]} 15. cxd5 {[%emt 0:03:32]} Bxd5 {[%emt 0:03:51]} 16. Nb3 {[%emt 0:02:22]} Bb6 {[%emt 0:00:59]} 17. Be3 {[%emt 0:03:32]} Bc4 {[%emt 0:00:42]} 18. Bxb6 {[%emt 0:00:52]} axb6 {[%emt 0:00:43]} 19. Qc2 {[%emt 0:00:37]} Qf4 {[%emt 0:02:01]} 20. Rfe1 {[%emt 0:02:34]} Rac8 {[%emt 0:05:33]} 21. Qd2 {[%emt 0:02:00]} Qg5 {[%emt 0:07:52]} 22. Nxg5 {[%emt 0:05:12]} hxg5 {[%emt 0:00:43]} 23. Rad1 {[%emt 0:02:53]} g4 {[%emt 0:05:26]} 24. Qd4 {[%emt 0:00:59]} b5 {[%emt 0:02:25]} 25. Nc5 {[%emt 0:01:36]} Bd5 {[%emt 0:04:08]} 26. Nd7 {[%emt 0:00:49]} Rfd8 {[%emt 0:02:26]} 27. Nxf6+ {[%emt 0:01:15]} gxf6 {[%emt 0:01:02]} 28. Qxg4+ {[%emt 0:00:41]} Kf8 {[%emt 0:00:12]} 29. Rxd5 {[%emt 0:00:07]} Re8 {[%emt 0:01:32]} 30. Rxe8+ {[%emt 0:00:57]} Rxe8 {[%emt 0:00:07]} 31. h4 {[%emt 0:00:11]} Re1+ {[%emt 0:00:21]} 32. Kh2 {[%emt 0:00:05]} Re8 {[%emt 0:01:38]} 33. Rd7 {[%emt 0:00:21]} Re7 {[%emt 0:00:53]} 34. Qb4 {[%emt 0:00:10]} Kg7 {[%emt 0:00:12]} 35. Qxe7 {[%emt 0:00:05]} Kh6 {[%emt 0:00:11]} 36. Qxf6+ {[%emt 0:00:07]} Kh7 {[%emt 0:00:21]} 37. Rxf7+ {[%emt 0:00:06]} 1-0

[Event "CZE-ch U14 Girls 2020"]
[Site "Kouty nad Desnou"]
[Date "2020.03.08"]
[Round "2.21"]
[White "Stavova, Helena"]
[Black "Nespora, Tatana"]
[Result "1/2-1/2"]
[ECO "B22"]
[WhiteElo "1146"]
[BlackElo "1310"]
[Annotator "NA"]
[PlyCount "128"]
[EventDate "2020.03.07"]
[EventCountry "CZE"]
[SourceTitle "playchess.com"]
[Source "ChessBase"]
[SourceQuality "1"]
[TimeControl "5400+30"]

1. e4 {[%emt 0:00:00]} c5 {[%emt 0:00:00]} 2. Nf3 {[%emt 0:00:00]} Nc6 {[%emt 0:00:40]} 3. c3 {[%emt 0:01:33]} d5 {[%emt 0:07:33]} 4. d3 {[%emt 0:04:55]} dxe4 {[%emt 0:03:39]} 5. dxe4 {[%emt 0:01:06]} Qxd1+ {[%emt 0:01:34]} 6. Kxd1 {[%emt 0:00:13]} Bg4 {[%emt 0:04:22]} 7. Be2 {[%emt 0:02:16]} Nf6 {[%emt 0:04:10]} 8. e5 {[%emt 0:03:24]} Nd5 {[%emt 0:04:24]} 9. c4 {[%emt 0:04:03]} Ndb4 {[%emt 0:01:14]} 10. Bf4 {[%emt 0:05:09]} Rd8+ {[%emt 0:02:09]} 11. Nbd2 {[%emt 0:01:24]} e6 {[%emt 0:00:30]} 12. a3 {[%emt 0:02:00]} Nd3 {[%emt 0:00:58]} 13. Bxd3 {[%emt 0:01:03]} Rxd3 {[%emt 0:00:13]} 14. Ke2 {[%emt 0:00:55]} Rd8 {[%emt 0:01:12]} 15. Rhd1 {[%emt 0:01:49]} Nd4+ {[%emt 0:02:08]} 16. Kf1 {[%emt 0:02:19]} Be7 {[%emt 0:03:04]} 17. Be3 {[%emt 0:02:19]} Nc2 {[%emt 0:02:52]} 18. Rac1 {[%emt 0:01:36]} Nxe3+ {[%emt 0:01:14]} 19. fxe3 {[%emt 0:00:17]} O-O {[%emt 0:01:06]} 20. Ne4 {[%emt 0:02:14]} h6 {[%emt 0:07:06]} 21. h3 {[%emt 0:03:02]} Bf5 {[%emt 0:01:18]} 22. Nd6 {[%emt 0:02:12]} Bxd6 {[%emt 0:03:32]} 23. exd6 {[%emt 0:01:15]} Be4 {[%emt 0:03:38]} 24. Ne5 {[%emt 0:02:32]} f6 {[%emt 0:02:43]} 25. Nd3 {[%emt 0:00:46]} Bxd3+ {[%emt 0:04:16]} 26. Rxd3 {[%emt 0:00:21]} Rd7 {[%emt 0:00:39]} 27. b4 {[%emt 0:01:10]} b6 {[%emt 0:00:45]} 28. e4 {[%emt 0:03:41]} Rfd8 {[%emt 0:01:17]} 29. Rcd1 {[%emt 0:00:52]} Kf7 {[%emt 0:00:33]} 30. Kf2 {[%emt 0:01:04]} Ke8 {[%emt 0:03:03]} 31. Kf3 {[%emt 0:01:39]} Rc8 {[%emt 0:00:48]} 32. Rc1 {[%emt 0:02:00]} Rc6 {[%emt 0:01:36]} 33. Rcc3 {[%emt 0:02:36]} Rcxd6 {[%emt 0:00:55]} 34. Ke3 {[%emt 0:01:07]} Rd4 {[%emt 0:01:23]} 35. Rb3 {[%emt 0:01:53]} Rxc4 {[%emt 0:02:59]} 36. Rxd7 {[%emt 0:01:47]} Kxd7 {[%emt 0:00:21]} 37. Kd3 {[%emt 0:00:48]} Rd4+ {[%emt 0:00:54]} 38. Ke3 {[%emt 0:00:28]} Rc4 {[%emt 0:05:56]} 39. Kd3 {[%emt 0:00:54]} Rc1 {[%emt 0:01:57]} 40. Rb2 {[%emt 0:00:00]} c4+ {[%emt 0:00:00]} 41. Kd2 {[%emt 0:00:00]} c3+ {[%emt 0:00:00]} 42. Kxc1 {[%emt 0:00:00]} cxb2+ {[%emt 0:00:00]} 43. Kxb2 {[%emt 0:00:00]} Kd6 {[%emt 0:00:00]} 44. Kc3 {[%emt 0:00:00]} Ke5 {[%emt 0:00:00]} 45. Kd3 {[%emt 0:00:00]} Kf4 {[%emt 0:00:00]} 46. Kd4 {[%emt 0:00:00]} g5 {[%emt 0:00:00]} 47. a4 {[%emt 0:00:00]} h5 {[%emt 0:00:00]} 48. a5 {[%emt 0:00:00]} bxa5 {[%emt 0:00:00]} 49. bxa5 {[%emt 0:00:00]} g4 {[%emt 0:00:00]} 50. Kc5 {[%emt 0:00:00]} Kg3 {[%emt 0:00:00]} 51. Kc6 {[%emt 0:00:00]} f5 {[%emt 0:00:00]} 52. exf5 {[%emt 0:00:00]} exf5 {[%emt 0:00:00]} 53. hxg4 {[%emt 0:00:00]} hxg4 {[%emt 0:00:00]} 54. Kb7 {[%emt 0:00:00]} f4 {[%emt 0:00:00]} 55. Kxa7 {[%emt 0:00:00]} f3 {[%emt 0:00:00]} 56. gxf3 {[%emt 0:00:00]} gxf3 {[%emt 0:00:00]} 57. a6 {[%emt 0:00:00]} f2 {[%emt 0:00:00]} 58. Kb7 {[%emt 0:00:00]} f1=Q {[%emt 0:00:00]} 59. a7 {[%emt 0:00:00]} Qb1+ {[%emt 0:00:00]} 60. Ka8 {[%emt 0:00:00]} Qe4+ {[%emt 0:00:00]} 61. Kb8 {[%emt 0:00:00]} Qe8+ {[%emt 0:01:10]} 62. Kb7 {[%emt 0:00:00]} Qd7+ {[%emt 0:00:09]} 63. Kb8 {[%emt 0:00:00]} Qd6+ {[%emt 0:00:32]} 64. Kb7 {[%emt 0:00:00]} Qd5+ {[%emt 0:01:51]} 1/2-1/2